bitfinex/quotes_SOLUSD_20241127
["timestamp","ask_amount","ask_price","bid_price","bid_amount"]
[1732675969474,1.2835,233.72,233.66,13.2172976]
[1732675970374,1.2835,233.72,233.66,8.45065678]
[1732675970879,9.73405678,233.75,233.68,8.45065678]
[1732675971480,8.45065678,233.74,233.67,8.45065678]
[1732675971958,1.2835,233.73,233.67,8.45065678]
[1732675974356,8.45065678,233.75,233.67,8.45065678]
[1732675974553,9.73405678,233.75,233.67,8.45065678]
[1732675975575,1.2834,233.75,233.67,8.45065678]
[1732675975787,9.73405678,233.75,233.67,8.45065678]
[1732675976270,1.2834,233.75,233.71,8.45065678]
[1732675976812,1.2834,233.75,233.7,8.45065678]
[1732675980670,1.2834,233.75,233.69,8.45065678]
[1732675981499,9.73405678,233.75,233.62,72.5]
[1732675981793,8.45065678,233.67,233.57,1.00619006]
[1732675981989,8.45065678,233.63,233.57,1.00619006]
[1732675982160,8.45065678,233.62,233.57,1.00619006]
[1732675982662,23.5481,233.65,233.57,1.00619006]
[1732675982663,8.45065678,233.61,233.57,1.00619006]
[1732675982978,8.45065678,233.59,233.52,8.45065678]
[1732675983164,23.5481,233.65,233.48,4.2828]
[1732675983165,8.45065678,233.6,233.53,8.45065678]
[1732675983585,1.2843,233.59,233.53,8.45065678]
[1732675984256,1.2842,233.61,233.56,8.45065678]
[1732675984561,1.2842,233.61,233.55,8.45065678]
[1732675984763,1.2842,233.61,233.54,8.45065678]
[1732675985063,9.73485678,233.61,233.53,8.45065678]
[1732675985667,9.73485678,233.61,233.54,8.45065678]
[1732675986258,9.73485678,233.61,233.48,23.776884]
[1732675986259,8.45065678,233.6,233.48,23.776884]
[1732675986482,8.45065678,233.56,233.46,9.318]
[1732675986780,8.45065678,233.56,233.48,8.45065678]
[1732675986981,11.113,233.61,233.49,8.45065678]
[1732675987182,8.45065678,233.57,233.49,8.45065678]
[1732675987388,1.2844,233.56,233.49,8.45065678]
[1732675988273,1.2844,233.56,233.5,8.45065678]
[1732675988589,1.2844,233.56,233.51,8.45065678]
[1732675990873,1.2842,233.6,233.51,8.45065678]
[1732675991073,9.73465678,233.64,233.56,8.45065678]
[1732675992771,8.45065678,233.62,233.54,8.45065678]
[1732675993665,1.68094131,233.66,233.56,28.45065678]
[1732675993880,9.73455678,233.65,233.56,28.45065678]
[1732675994685,9.73455678,233.65,233.58,8.45065678]
[1732676002284,9.73455678,233.65,233.56,28.45065678]
[1732676002972,9.73455678,233.65,233.58,8.45065678]
[1732676003191,1.2836,233.7,233.6,8.45065678]
[1732676003393,8.45065678,233.68,233.61,8.45065678]
[1732676004776,9.73445678,233.68,233.61,8.45065678]
[1732676004972,1.62990386,233.72,233.61,8.45065678]
[1732676005173,8.45065678,233.72,233.64,8.45065678]
[1732676005774,8.45065678,233.7,233.62,20.0]
[1732676005973,8.45065678,233.7,233.62,8.45065678]
[1732676006199,5.0,233.75,233.59,9.1538]
[1732676006200,8.45065678,233.68,233.59,8.45065678]
[1732676006785,1.2838,233.67,233.59,8.45065678]
[1732676007078,1.2838,233.67,233.61,8.45065678]
[1732676007282,8.45065678,233.66,233.59,8.45065678]
[1732676007577,1.2838,233.67,233.59,8.45065678]
[1732676007885,8.45065678,233.66,233.59,8.45065678]
[1732676008195,8.45065678,233.66,233.58,8.45065678]
[1732676008378,9.73455678,233.66,233.58,8.45065678]
[1732676009596,8.45065678,233.64,233.56,8.45065678]
[1732676009774,8.45065678,233.64,233.49,83.207]
[1732676009775,8.45065678,233.59,233.49,4.2828]
[1732676009976,4.4936,233.66,233.49,12.73345678]
[1732676009977,33.80262712,233.64,233.49,12.73345678]
[1732676010204,8.45065678,233.57,233.49,12.73345678]
[1732676010497,8.45065678,233.58,233.5,8.45065678]
[1732676011080,9.73495678,233.58,233.5,8.45065678]
[1732676012401,9.73495678,233.58,233.51,8.45065678]
[1732676013393,8.45065678,233.59,233.52,8.45065678]
[1732676013910,8.45065678,233.58,233.42,9.2906]
[1732676014081,33.11915678,233.57,233.48,8.45065678]
[1732676014278,33.11915678,233.57,233.5,8.45065678]
[1732676014584,24.6685,233.57,233.5,8.45065678]
[1732676014797,33.11915678,233.62,233.55,8.45065678]
[1732676015105,24.6685,233.62,233.57,8.45065678]
[1732676015282,8.45065678,233.67,233.6,8.45065678]
[1732676015477,36.06600063,233.68,233.58,4.2811]
[1732676015704,27.61534385,233.68,233.56,4.2813]
[1732676015903,27.61534385,233.68,233.59,8.45065678]
[1732676016084,8.45065678,233.67,233.59,8.45065678]
[1732676016283,40.82600976,233.68,233.6,13.21066591]
[1732676016608,26.33154385,233.68,233.61,13.21066591]
[1732676017583,13.21066591,233.67,233.57,4.2812]
[1732676017790,13.21066591,233.67,233.6,13.21066591]
[1732676020309,14.49446591,233.67,233.6,13.21066591]
[1732676024486,14.49446591,233.67,233.58,13.21066591]
[1732676024809,13.21066591,233.66,233.59,13.21066591]
[1732676025714,14.49456591,233.66,233.59,13.21066591]
[1732676027014,14.49446591,233.67,233.6,13.21066591]
[1732676027901,14.49446591,233.67,233.59,13.21066591]
[1732676030705,13.21066591,233.66,233.59,13.21066591]
[1732676031821,14.49456591,233.66,233.59,13.21066591]
[1732676032117,13.21066591,233.65,233.58,13.21066591]
[1732676032316,14.49456591,233.66,233.58,13.21066591]
[1732676032502,14.49456591,233.66,233.59,13.21066591]
[1732676032895,14.49456591,233.66,233.58,13.21066591]
[1732676032896,13.21066591,233.65,233.58,13.21066591]
[1732676033418,14.49456591,233.66,233.59,13.21066591]
[1732676033911,1.2839,233.66,233.59,13.21066591]
[1732676034298,1.2839,233.66,233.6,13.21066591]
[1732676036317,1.2839,233.66,233.6,8.45543629]
[1732676039099,9.73933629,233.66,233.59,8.45543629]
[1732676040619,1.2839,233.66,233.6,8.45543629]
[1732676040824,1.2839,233.66,233.59,8.45543629]
[1732676041731,1.2839,233.66,233.6,8.45543629]
[1732676041906,25.9523,233.68,233.62,8.45543629]
[1732676042229,24.6685,233.68,233.63,8.45543629]
[1732676042430,24.6685,233.68,233.64,8.45543629]
[1732676042598,1.2835,233.73,233.67,8.45543629]
[1732676042922,24.1503,233.74,233.7,8.45543629]
[1732676043799,24.1503,233.8,233.72,8.45543629]
[1732676044001,25.4334,233.8,233.74,8.45543629]
[1732676044200,1.283,233.82,233.75,8.45543629]
[1732676044626,1.67838772,233.83,233.76,8.45543629]
[1732676044830,24.2973,233.85,233.78,8.45543629]
[1732676045009,34.03553629,233.85,233.78,8.45543629]
[1732676045214,8.59543629,233.84,233.77,8.45543629]
[1732676045915,9.87833629,233.84,233.77,8.45543629]
[1732676047304,1.2831,233.8,233.73,8.45543629]
[1732676047514,0.14,233.84,233.71,20.0]
[1732676047515,1.2832,233.78,233.71,20.0]
[1732676047708,8.45543629,233.76,233.66,23.7289]
[1732676047906,8.45543629,233.76,233.69,8.45543629]
[1732676048098,1.2834,233.75,233.69,8.45543629]
[1732676048305,1.2834,233.75,233.68,8.45543629]
[1732676049323,9.73883629,233.75,233.68,8.45543629]
[1732676049630,1.2834,233.75,233.69,8.45543629]
[1732676049928,1.2834,233.75,233.7,8.45543629]
[1732676050423,8.45543629,233.76,233.69,8.45543629]
[1732676051306,1.2832,233.78,233.69,8.45543629]
[1732676051528,1.2834,233.75,233.69,8.45543629]
[1732676051731,9.73883629,233.75,233.68,8.45543629]
[1732676051912,1.2834,233.75,233.69,8.45543629]
[1732676052224,8.45543629,233.77,233.69,8.45543629]
[1732676052432,9.73873629,233.77,233.7,8.45543629]
[1732676053521,9.73873629,233.77,233.69,8.45543629]
[1732676053845,1.2833,233.77,233.69,8.45543629]
[1732676054131,8.45543629,233.75,233.68,8.45543629]
[1732676055127,1.2833,233.77,233.71,8.45543629]
[1732676055315,1.7917956,233.79,233.75,8.45543629]
[1732676055833,0.5085956,233.79,233.76,8.45543629]
[1732676056018,0.5085956,233.79,233.78,8.45543629]
[1732676058408,0.5085956,233.79,233.77,8.45543629]
[1732676059110,0.5085956,233.79,233.76,8.45543629]
[1732676059311,0.5085956,233.79,233.75,28.45543629]
[1732676059711,1.7917956,233.79,233.67,9.6761]
[1732676059909,1.7917956,233.79,233.71,8.45543629]
[1732676060113,10.24723189,233.79,233.72,8.45543629]
[1732676060412,10.24723189,233.79,233.71,8.45543629]
[1732676060610,8.45543629,233.78,233.67,9.6761]
[1732676060812,8.45543629,233.78,233.7,8.45543629]
[1732676061021,1.2833,233.77,233.7,8.45543629]
[1732676061430,1.2833,233.77,233.67,9.6761]
[1732676061646,8.45543629,233.76,233.69,8.45543629]
[1732676062234,1.2834,233.75,233.69,8.45543629]
[1732676063118,9.73883629,233.75,233.68,8.45543629]
[1732676063444,9.73883629,233.75,233.61,9.6761]
[1732676063445,8.45543629,233.72,233.61,9.6761]
[1732676063611,8.45543629,233.72,233.65,8.45543629]
[1732676063807,8.45543629,233.69,233.57,4.2812]
[1732676064011,8.45543629,233.69,233.62,8.45543629]
[1732676064214,28.5895,233.75,233.54,34.1018]
[1732676064215,8.45543629,233.7,233.63,8.45543629]
[1732676064425,8.45543629,233.71,233.63,8.45543629]
[1732676064938,4.492,233.74,233.66,8.45543629]
[1732676065137,12.94743629,233.74,233.66,8.45543629]
[1732676065351,1.2834,233.74,233.68,8.45543629]
[1732676067824,1.2834,233.74,233.64,4.2799]
[1732676068032,1.2834,233.74,233.68,8.45543629]
[1732676068233,9.73883629,233.74,233.63,20.0]
[1732676068546,14.48750433,233.74,233.66,13.20410433]
[1732676070029,13.20410433,233.72,233.64,13.20410433]
[1732676071256,13.20410433,233.7,233.62,13.20410433]
[1732676071441,1.2837,233.69,233.62,13.20410433]
[1732676071641,13.20410433,233.68,233.61,13.20410433]
[1732676072761,13.20410433,233.68,233.6,13.20410433]
[1732676073062,1.2838,233.67,233.6,13.20410433]
[1732676073236,1.2838,233.67,233.58,13.20410433]
[1732676073237,13.20410433,233.65,233.58,13.20410433]
[1732676073444,13.20410433,233.64,233.57,13.20410433]
[1732676073958,13.20410433,233.64,233.54,4.2817]
[1732676074165,13.20410433,233.64,233.56,13.20410433]
[1732676074334,1.284,233.63,233.56,13.20410433]
[1732676074733,13.20410433,233.62,233.55,13.20410433]
[1732676074938,13.20410433,233.58,233.51,13.20410433]
[1732676075946,13.20410433,233.57,233.49,13.20410433]
[1732676076441,1.2844,233.56,233.49,13.20410433]
[1732676076751,1.2844,233.56,233.5,13.20410433]
[1732676077354,1.2844,233.56,233.51,13.20410433]
[1732676078261,1.2842,233.61,233.55,13.20410433]
[1732676078565,1.2842,233.61,233.57,13.20410433]
[1732676079074,1.2841,233.63,233.59,13.20410433]
[1732676079280,24.3237,233.65,233.61,13.20410433]
[1732676079569,1.2837,233.69,233.63,13.20410433]
[1732676080371,1.2837,233.69,233.64,13.20410433]
[1732676080857,1.2837,233.69,233.62,13.20410433]
[1732676081254,14.48780433,233.69,233.57,20.0]
[1732676081448,14.48780433,233.69,233.62,13.20410433]
[1732676081891,13.20410433,233.67,233.6,13.20410433]
[1732676082362,1.2839,233.66,233.6,13.20410433]
[1732676083876,1.2839,233.66,233.58,13.20410433]
[1732676084173,13.20410433,233.65,233.58,13.20410433]
[1732676084673,1.284,233.64,233.58,13.20410433]
[1732676084971,14.48810433,233.64,233.57,13.20410433]
[1732676087559,13.20410433,233.66,233.58,13.20410433]
[1732676088147,13.20410433,233.67,233.6,13.20410433]
[1732676089420,1.2839,233.66,233.6,13.20410433]
[1732676089673,1.2839,233.66,233.61,13.20410433]
[1732676090950,1.2839,233.66,233.59,13.20410433]
[1732676097257,13.20410433,233.65,233.57,13.20410433]
[1732676097458,13.20410433,233.63,233.55,13.20410433]
[1732676098253,8.45829482,233.63,233.55,8.45829482]
[1732676099065,1.2841,233.62,233.55,8.45829482]
[1732676099376,1.2841,233.62,233.56,8.45829482]
[1732676099580,1.2841,233.62,233.58,8.45829482]
[1732676099872,1.2841,233.62,233.56,8.45829482]
[1732676100076,1.2841,233.62,233.57,8.45829482]
[1732676101185,8.45829482,233.65,233.57,8.45829482]
[1732676101186,1.284,233.64,233.57,8.45829482]
[1732676101679,3.2093,233.7,233.59,8.45829482]
[1732676101680,8.45829482,233.67,233.59,8.45829482]
[1732676102059,8.45829482,233.65,233.57,8.45829482]
[1732676102670,8.45829482,233.65,233.53,4.2821]
[1732676102876,8.45829482,233.65,233.57,8.45829482]
[1732676102877,1.284,233.64,233.57,8.45829482]
[1732676103187,8.45829482,233.68,233.59,8.45829482]
[1732676103481,1.2838,233.68,233.62,8.45829482]
[1732676103858,23.0397,233.71,233.64,8.45829482]
[1732676104060,1.2837,233.7,233.64,8.45829482]
[1732676104582,1.2837,233.7,233.66,8.45829482]
[1732676104786,1.2837,233.7,233.64,8.45829482]
[1732676105079,23.0397,233.71,233.66,8.45829482]
[1732676105291,1.2836,233.72,233.66,8.45829482]
[1732676106384,1.2836,233.72,233.67,13.2025638]
[1732676106585,1.2834,233.74,233.67,13.2025638]
[1732676106785,13.2025638,233.73,233.65,13.2025638]
[1732676106974,13.2025638,233.71,233.63,13.2025638]
[1732676107188,13.2025638,233.73,233.59,28.0897]
[1732676107487,13.2025638,233.71,233.63,13.2025638]
[1732676108062,13.2025638,233.7,233.63,13.2025638]
[1732676108264,13.2025638,233.71,233.63,13.2025638]
[1732676108589,1.2836,233.7,233.63,13.2025638]
[1732676109075,13.2025638,233.69,233.61,13.2025638]
[1732676110688,14.4862638,233.69,233.61,13.2025638]
[1732676111685,13.2025638,233.67,233.59,13.2025638]
[1732676112257,13.2025638,233.68,233.6,13.2025638]
[1732676112458,14.4862638,233.69,233.61,13.2025638]
[1732676112883,13.2025638,233.67,233.61,13.2025638]
[1732676113781,1.2839,233.66,233.61,13.2025638]
[1732676114869,1.2838,233.68,233.63,13.2025638]
[1732676115768,14.82899272,233.71,233.63,13.2025638]
[1732676115982,1.2836,233.7,233.63,13.2025638]
[1732676116778,13.2025638,233.69,233.61,13.2025638]
[1732676116991,13.2025638,233.67,233.59,13.2025638]
[1732676117881,13.2025638,233.67,233.57,9.68]
[1732676118194,1.2837,233.7,233.63,13.2025638]
[1732676120097,14.4862638,233.7,233.63,13.2025638]
[1732676120475,14.4862638,233.7,233.61,13.2025638]
[1732676121475,14.4862638,233.7,233.61,17.4830638]
[1732676121987,14.4862638,233.7,233.63,13.2025638]
[1732676123066,13.2025638,233.72,233.63,13.2025638]
[1732676123477,13.2025638,233.7,233.63,13.2025638]
[1732676123879,13.2025638,233.7,233.61,13.2025638]
[1732676124794,13.2025638,233.68,233.61,13.2025638]
[1732676124982,1.2838,233.67,233.61,13.2025638]
[1732676125178,13.2025638,233.66,233.57,9.68]
[1732676125491,13.2025638,233.66,233.54,14.14436005]
[1732676125492,13.2025638,233.62,233.54,14.14436005]
[1732676125701,13.2025638,233.62,233.54,0.94179625]
[1732676125872,13.2025638,233.6,233.54,0.94179625]
[1732676126569,13.2025638,233.59,233.54,0.94179625]
[1732676127195,1.2843,233.58,233.54,0.94179625]
[1732676128069,13.2025638,233.58,233.54,0.94179625]
[1732676129283,1.2844,233.57,233.54,0.94179625]
[1732676130990,1.2841,233.61,233.54,9.40267709]
[1732676131187,9.74498084,233.61,233.54,9.40267709]
[1732676131592,9.74498084,233.61,233.54,0.94179625]
[1732676131593,8.46088084,233.6,233.54,0.94179625]
[1732676132583,8.46088084,233.58,233.54,0.94179625]
[1732676132793,8.46088084,233.55,233.54,0.94179625]
[1732676132994,8.46088084,233.55,233.47,8.46088084]
[1732676133389,32.23776484,233.59,233.51,8.46088084]
[1732676133589,1.2842,233.6,233.55,8.46088084]
[1732676133978,1.2842,233.6,233.48,24.2829]
[1732676133979,22.8803,233.66,233.56,8.46088084]
[1732676134301,1.2839,233.65,233.58,8.46088084]
[1732676135603,1.2839,233.65,233.6,8.46088084]
[1732676136182,8.46088084,233.64,233.49,4.2828]
[1732676136377,8.46088084,233.64,233.56,8.46088084]
[1732676136601,8.46088084,233.64,233.49,4.2828]
[1732676136802,8.46088084,233.64,233.56,8.46088084]
[1732676137105,1.284,233.63,233.57,8.46088084]
[1732676137604,1.284,233.63,233.56,8.46088084]
[1732676138795,1.284,233.63,233.48,30.7075]
[1732676138989,1.284,233.63,233.56,8.46088084]
[1732676139705,1.284,233.63,233.57,8.46088084]
[1732676139910,1.2839,233.65,233.58,8.46088084]
[1732676140099,1.2839,233.65,233.6,8.46088084]
[1732676140406,25.060684,233.68,233.62,8.46088084]
[1732676140612,33.37668084,233.71,233.62,8.46088084]
[1732676140783,1.2837,233.7,233.62,8.46088084]
[1732676141504,9.74458084,233.7,233.62,8.46088084]
[1732676143088,48.692684,233.69,233.57,20.0]
[1732676143408,8.46088084,233.65,233.57,28.46088084]
[1732676143582,8.46088084,233.65,233.57,8.46088084]
[1732676145212,1.284,233.64,233.57,8.46088084]
[1732676146391,13.21548752,233.64,233.56,13.21548752]
[1732676147408,1.284,233.63,233.56,13.21548752]
[1732676150409,1.284,233.63,233.57,13.21548752]
[1732676150615,1.284,233.63,233.58,13.21548752]
[1732676151709,1.284,233.64,233.58,13.21548752]
[1732676151919,1.284,233.64,233.56,13.21548752]
[1732676152824,13.21548752,233.61,233.54,13.21548752]
[1732676153415,13.21548752,233.61,233.48,9.3604]
[1732676153416,13.21548752,233.61,233.52,13.21548752]
[1732676153893,1.2842,233.6,233.52,13.21548752]
[1732676154991,1.2842,233.6,233.55,13.21548752]
[1732676155717,13.21548752,233.62,233.55,13.21548752]
[1732676155718,1.2841,233.61,233.55,13.21548752]
[1732676156220,13.21548752,233.62,233.55,13.21548752]
[1732676156401,13.21548752,233.64,233.55,13.21548752]
[1732676156589,25.060784,233.66,233.55,13.21548752]
[1732676156790,13.21548752,233.64,233.55,13.21548752]
[1732676157200,13.21548752,233.64,233.54,4.2819]
[1732676157201,13.21548752,233.64,233.57,13.21548752]
[1732676157518,14.49948752,233.64,233.57,13.21548752]
[1732676158297,1.284,233.64,233.57,13.21548752]
[1732676158905,36.99237152,233.66,233.57,13.21548752]
[1732676159219,1.2839,233.65,233.57,13.21548752]
[1732676159416,13.21548752,233.64,233.57,13.21548752]
[1732676159613,13.21548752,233.62,233.53,13.21548752]
[1732676161023,1.2841,233.61,233.53,13.21548752]
[1732676163030,1.2841,233.61,233.48,9.3604]
[1732676163031,3.2099,233.65,233.57,13.21548752]
[1732676163328,3.2099,233.65,233.59,13.21548752]
[1732676163329,1.2839,233.65,233.59,13.21548752]
[1732676163508,14.49938752,233.67,233.59,13.21548752]
[1732676163712,13.21548752,233.65,233.57,13.21548752]
[1732676164597,1.284,233.64,233.57,13.21548752]
[1732676164799,1.284,233.64,233.53,13.21548752]
[1732676164800,13.21548752,233.63,233.53,13.21548752]
[1732676165227,13.21548752,233.63,233.55,13.21548752]
[1732676165395,1.284,233.64,233.57,13.21548752]
[1732676166109,24.9158,233.69,233.59,13.21548752]
[1732676166110,1.2839,233.66,233.59,13.21548752]
[1732676166423,1.2839,233.66,233.53,4.2821]
[1732676166424,1.2838,233.68,233.61,13.21548752]
[1732676166803,1.2838,233.68,233.63,13.21548752]
[1732676167325,1.2838,233.68,233.61,13.21548752]
[1732676168423,8.45502878,233.67,233.59,8.45502878]
[1732676168801,1.2839,233.66,233.59,8.45502878]
[1732676169619,8.45502878,233.63,233.55,8.45502878]
[1732676170705,1.2841,233.62,233.55,8.45502878]
[1732676174509,8.45502878,233.61,233.51,20.0]
[1732676174710,8.45502878,233.59,233.51,28.45502878]
[1732676175228,23.776884,233.58,233.46,0.94211898]
[1732676175437,23.776884,233.58,233.49,8.45502878]
[1732676175611,32.23191278,233.58,233.49,8.45502878]
[1732676176616,1.2844,233.57,233.49,8.45502878]
[1732676176918,1.2844,233.57,233.51,8.45502878]
[1732676177122,8.45502878,233.58,233.51,8.45502878]
[1732676177123,22.9049,233.59,233.51,8.45502878]
[1732676177319,8.45502878,233.63,233.55,8.45502878]
[1732676177541,9.73902878,233.63,233.55,8.45502878]
[1732676180033,8.45502878,233.61,233.53,8.45502878]
[1732676180218,8.45502878,233.61,233.5,4.2824]
[1732676180219,8.45502878,233.59,233.51,8.45502878]
[1732676180422,23.776884,233.62,233.53,8.45502878]
[1732676180623,1.2842,233.6,233.53,8.45502878]
[1732676181818,1.2842,233.6,233.52,8.45502878]
[1732676182037,8.45502878,233.59,233.52,8.45502878]
[1732676182336,8.45502878,233.59,233.49,8.45502878]
[1732676182337,23.776884,233.58,233.49,8.45502878]
[1732676182525,23.776884,233.58,233.51,8.45502878]
[1732676183216,23.776884,233.58,233.46,5.22541898]
[1732676183217,9.73942878,233.57,233.49,8.45502878]
[1732676184433,1.2844,233.57,233.51,8.45502878]
[1732676186012,1.2843,233.58,233.51,8.45502878]
[1732676187434,25.061084,233.61,233.51,12.73732878]
[1732676187740,33.51611278,233.61,233.53,8.45502878]
[1732676188235,9.73922878,233.61,233.53,8.45502878]
[1732676188415,1.2842,233.61,233.55,8.45502878]
[1732676188616,8.45502878,233.63,233.55,8.45502878]
[1732676188617,1.2841,233.62,233.55,8.45502878]
[1732676189316,8.45502878,233.61,233.51,8.45502878]
[1732676189841,1.2841,233.62,233.51,8.45502878]
[1732676189842,8.45502878,233.59,233.51,8.45502878]
[1732676190636,1.2843,233.58,233.51,8.45502878]
[1732676192748,8.45502878,233.57,233.49,8.45502878]
[1732676193425,8.45502878,233.57,233.46,5.22531898]
[1732676193944,1.2844,233.56,233.49,8.45502878]
[1732676194239,1.2844,233.56,233.51,8.45502878]
[1732676194641,25.061184,233.58,233.51,8.45502878]
[1732676195239,8.45502878,233.57,233.49,8.45502878]
[1732676195619,1.2844,233.56,233.49,8.45502878]
[1732676197745,1.2844,233.56,233.51,8.45502878]
[1732676198124,9.73932878,233.59,233.51,8.45502878]
[1732676198745,9.73932878,233.59,233.53,8.45502878]
[1732676198746,1.2843,233.59,233.53,8.45502878]
[1732676199239,25.061084,233.6,233.53,8.45502878]
[1732676199644,8.45502878,233.61,233.53,8.45502878]
[1732676199854,1.2841,233.61,233.55,8.45502878]
[1732676200154,8.45502878,233.63,233.55,8.45502878]
[1732676200462,9.73912878,233.63,233.55,8.45502878]
[1732676200629,1.2841,233.63,233.57,8.45502878]
[1732676201544,1.2841,233.63,233.57,7.95502878]
[1732676203051,1.2841,233.63,233.56,8.45502878]
[1732676203248,9.73912878,233.63,233.56,8.45502878]
[1732676203446,21.90486055,233.72,233.62,8.45502878]
[1732676203447,22.8208,233.7,233.62,8.45502878]
[1732676203757,6.74343942,233.75,233.66,8.45502878]
[1732676203967,15.1984682,233.75,233.67,8.45502878]
[1732676204170,8.45502878,233.75,233.67,8.45502878]
[1732676204659,8.45502878,233.73,233.65,8.45502878]
[1732676204955,1.2835,233.72,233.65,8.45502878]
[1732676205762,8.45502878,233.71,233.54,72.5]
[1732676205933,8.45502878,233.69,233.61,8.45502878]
[1732676206342,8.45502878,233.69,233.62,8.45502878]
[1732676206850,9.73872878,233.69,233.62,8.45502878]
[1732676208548,1.2837,233.69,233.62,8.45502878]
[1732676210062,8.45502878,233.68,233.55,20.0]
[1732676210254,8.45502878,233.66,233.58,8.45502878]
[1732676210565,8.45502878,233.66,233.53,4.2821]
[1732676210566,8.45502878,233.66,233.59,8.45502878]
[1732676211370,9.73892878,233.66,233.59,8.45502878]
[1732676211855,8.45502878,233.68,233.6,8.45502878]
[1732676212063,1.2838,233.69,233.62,8.45502878]
[1732676213553,8.45502878,233.7,233.62,8.45502878]
[1732676213752,1.2837,233.7,233.63,8.45502878]
[1732676213960,8.45502878,233.71,233.63,8.45502878]
[1732676214165,9.73852878,233.72,233.64,8.45502878]
[1732676214762,1.2835,233.72,233.65,8.45502878]
[1732676214963,1.2834,233.74,233.65,8.45502878]
[1732676215164,8.45502878,233.72,233.65,8.45502878]
[1732676216178,1.2836,233.71,233.65,8.45502878]
[1732676216470,8.45502878,233.7,233.62,8.45502878]
[1732676217558,9.73872878,233.7,233.62,8.45502878]
[1732676217752,1.2837,233.7,233.62,12.73542878]
[1732676217952,9.73872878,233.7,233.62,12.73542878]
[1732676218359,9.73872878,233.7,233.62,8.45502878]
[1732676218554,22.8208,233.76,233.64,8.45502878]
[1732676218755,22.8208,233.76,233.66,8.45502878]
[1732676218954,8.45502878,233.75,233.68,8.45502878]
[1732676219152,8.45502878,233.77,233.7,8.45502878]
[1732676219387,9.73832878,233.77,233.7,8.45502878]
[1732676219949,9.73832878,233.77,233.68,12.73432878]
[1732676220153,9.73832878,233.77,233.68,8.45502878]
[1732676220562,1.2833,233.77,233.68,8.45502878]
[1732676220769,8.45502878,233.76,233.68,8.45502878]
[1732676221182,9.73842878,233.76,233.63,0.94143345]
[1732676221382,8.45502878,233.74,233.66,8.45502878]
[1732676221964,8.45502878,233.74,233.65,28.45502878]
[1732676222171,1.2835,233.73,233.66,20.0]
[1732676222481,8.45502878,233.72,233.66,20.0]
[1732676223772,9.73852878,233.72,233.65,4.2798]
[1732676223959,9.73852878,233.72,233.64,8.45502878]
[1732676225283,9.73852878,233.72,233.63,0.94143345]
[1732676225284,8.45502878,233.7,233.63,0.94143345]
[1732676225575,8.45502878,233.68,233.63,0.94143345]
[1732676226250,9.73882878,233.68,233.63,0.94143345]
[1732676227577,8.45502878,233.68,233.63,0.94143345]
[1732676227769,8.45502878,233.67,233.63,0.94143345]
[1732676227957,8.45502878,233.64,233.63,0.94143345]
[1732676228368,8.45502878,233.65,233.63,0.94143345]
[1732676228572,8.45502878,233.66,233.63,0.94143345]
[1732676229952,11.36182798,233.74,233.64,8.45502878]
[1732676229953,1.2835,233.73,233.64,8.45502878]
[1732676230174,9.73852878,233.73,233.65,8.45502878]
[1732676230376,8.45502878,233.73,233.65,8.45502878]
[1732676230582,8.45502878,233.72,233.65,8.45502878]
[1732676230879,8.45502878,233.73,233.65,8.45502878]
[1732676231069,8.45502878,233.74,233.65,8.45502878]
[1732676231580,24.9756,233.75,233.65,8.45502878]
[1732676231755,8.45502878,233.73,233.65,8.45502878]
[1732676231964,8.45502878,233.73,233.66,4.2797]
[1732676232579,26.259,233.75,233.66,4.2797]
[1732676232798,33.43062878,233.75,233.67,8.45502878]
[1732676233082,8.45502878,233.75,233.67,8.45502878]
[1732676233458,1.2833,233.76,233.67,8.45502878]
[1732676233664,8.45502878,233.77,233.69,8.45502878]
[1732676234086,8.45502878,233.77,233.7,4.2789]
[1732676234383,13.19964917,233.77,233.7,4.2789]
[1732676234763,13.19964917,233.77,233.69,17.47874917]
[1732676235889,14.48294917,233.77,233.69,17.47874917]
[1732676236071,13.19964917,233.75,233.67,13.19964917]
[1732676236386,13.19964917,233.73,233.65,13.19964917]
[1732676237081,13.19964917,233.73,233.65,17.47934917]
[1732676238567,14.48314917,233.73,233.65,17.47934917]
[1732676240278,13.19964917,233.73,233.65,17.47934917]
[1732676240467,13.19964917,233.75,233.67,33.19964917]
[1732676240672,1.2833,233.76,233.69,13.19964917]
[1732676241271,13.70824477,233.79,233.71,13.19964917]
[1732676242074,13.70824477,233.79,233.72,4.2786]
[1732676242276,14.99144477,233.79,233.72,4.2786]
[1732676243166,14.99144477,233.79,233.71,17.47844917]
[1732676243387,13.19964917,233.77,233.69,13.19964917]
[1732676244268,13.19964917,233.77,233.7,4.2789]
[1732676245977,13.19964917,233.75,233.68,4.2792]
[1732676247488,14.48304917,233.75,233.67,33.19964917]